fUST/lending_fUST_20250628
["ID","MTS","AMOUNT","RATE_DAILY","PERIOD"]
[368322756,1751118647962,-1165.59,0.00020547,2]
[368322757,1751118647971,-1043.61,0.00020547,2]
[368322758,1751118647981,-1385.71,0.00020547,2]
[368322759,1751118647992,-462.26,0.00020547,2]
[368322760,1751118648001,-460.0,0.00020547,2]
[368322761,1751118648010,-267.94857808,0.00020547,2]
[368322762,1751118648019,-460.0,0.00020547,2]
[368322763,1751118648028,-460.0,0.00020547,2]
[368322764,1751118648037,-460.0,0.00020547,2]
[368322765,1751118648047,-460.0,0.00020547,2]
[368322766,1751118648056,-1396.09,0.00020547,2]
[368322767,1751118648065,-460.0,0.00020547,2]
[368322768,1751118648074,-566.96,0.00020547,2]
[368322769,1751118648083,-460.0,0.00020547,2]
[368322770,1751118648092,-543.84,0.00020547,2]
[368322771,1751118648101,-523.59,0.00020547,2]
[368322772,1751118648111,-460.0,0.00020547,2]
[368322773,1751118648120,-460.0,0.00020547,2]
[368322774,1751118648130,-598.81,0.00020547,2]
[368322775,1751118648139,-1395.53,0.00020547,2]
[368322776,1751118648149,-460.0,0.00020547,2]
[368322777,1751118648159,-1339.05,0.00020547,2]
[368322778,1751118648168,-460.0,0.00020547,2]
[368322779,1751118648178,-460.0,0.00020547,2]
[368322780,1751118648188,-460.0,0.00020547,2]
[368322781,1751118648198,-460.0,0.00020547,2]
[368322782,1751118648207,-460.0,0.00020547,2]
[368322783,1751118648217,-3278.61,0.00020547,2]
[368322784,1751118648226,-684.24,0.00020547,2]
[368322785,1751118648235,-500.0,0.00020547,2]
[368322786,1751118648245,-460.0,0.00020547,2]
[368322787,1751118648255,-460.0,0.00020547,2]
[368322788,1751118648264,-779.7,0.00020547,2]
[368322789,1751118648274,-1521.71,0.00020547,2]
[368322790,1751118648283,-858.86622399,0.00020584,2]
[368322791,1751118648293,-2772.55,0.000206,2]
[368322792,1751118648302,-1078.0,0.00020601,2]
[368322793,1751118648311,-500.0,0.00020601,2]
[368322794,1751118648321,-890.64427428,0.00020639,2]
[368322795,1751118648330,-206.0,0.0002068,2]
[368322796,1751118648339,-923.59811243,0.00020694,2]
[368322797,1751118648349,-1000.0,0.00020702,2]
[368322798,1751118648358,-1000.0,0.00020702,2]
[368322799,1751118648367,-423.737,0.00020704,2]
[368322800,1751118648377,-12564.78152626,0.00020728,3]
[368322801,1751118648386,-213.78848551,0.00020728,3]
[368322802,1751118648395,-4157.90516342,0.00020728,3]
[368322803,1751118648404,-847.18566335,0.00020728,3]
[368322804,1751118648413,-160.0,0.00020728,3]
[368322805,1751118648422,-532.36297218,0.00020763,2]
[368322806,1751118648431,-5000.0,0.00020802,2]
[368322807,1751118648443,-25000.0,0.00020802,2]
[368322808,1751118648454,-407.53823865,0.00020814,2]
[368322809,1751118648463,-151.0,0.00020821,2]
[368322810,1751118648472,-205.439159,0.00020821,2]
[368322811,1751118648481,-205.439159,0.00020821,2]
[368322812,1751118648491,-151.0,0.00020821,2]
[368322813,1751118648500,-151.0,0.00020821,2]
[368322814,1751118648509,-457.65556364,0.00020821,2]
[368322815,1751118648518,-460.0,0.00020821,2]
[368322816,1751118648527,-522.65,0.00020821,2]
[368322817,1751118648536,-460.0,0.00020821,2]
[368322818,1751118648546,-460.0,0.00020821,2]
[368322819,1751118648555,-460.0,0.00020821,2]
[368322820,1751118648564,-608.96,0.00020821,2]
[368322821,1751118648573,-460.0,0.00020821,2]
[368322822,1751118648583,-460.0,0.00020821,2]
[368322823,1751118648592,-460.0,0.00020821,2]
[368322824,1751118648601,-578.94,0.00020821,2]
[368322825,1751118648610,-460.0,0.00020821,2]
[368322826,1751118648619,-460.0,0.00020821,2]
[368322827,1751118648629,-164.91911445,0.00020821,2]
[368322828,1751118648638,-460.0,0.00020821,2]
[368322829,1751118648647,-460.0,0.00020821,2]
[368322830,1751118648657,-303.02425727,0.00020821,2]
[368322831,1751118648666,-1270.59,0.00020821,2]
[368322832,1751118648675,-1709.5,0.00020821,2]
[368322833,1751118648684,-460.0,0.00020821,2]
[368322834,1751118648694,-623.61,0.00020821,2]
[368322835,1751118648703,-460.0,0.00020821,2]
[368322836,1751118648713,-1964.43,0.00020821,2]
[368322837,1751118648722,-460.0,0.00020821,2]
[368322838,1751118648732,-460.0,0.00020821,2]
[368322839,1751118648745,-460.0,0.00020821,2]
[368322840,1751118648755,-460.0,0.00020821,2]
[368322841,1751118648765,-482.31,0.00020821,2]
[368322842,1751118648774,-2005.64,0.00020821,2]
[368322843,1751118648785,-510.98,0.00020821,2]
[368322844,1751118648794,-460.0,0.00020821,2]
[368322845,1751118648803,-460.0,0.00020821,2]
[368322846,1751118648813,-460.0,0.00020821,2]
[368322847,1751118648823,-221.83004643,0.00020821,2]
[368322848,1751118648832,-2488.5,0.00020821,2]
[368322849,1751118648841,-1642.79,0.00020821,2]
[368322850,1751118648850,-460.0,0.00020821,2]
[368322851,1751118648860,-768.19,0.00020821,2]
[368322852,1751118648869,-556.28,0.00020821,2]
[368322853,1751118648878,-2086.52,0.00020821,2]
[368322854,1751118648887,-460.0,0.00020821,2]
[368322855,1751118648897,-460.0,0.00020821,2]
[368322856,1751118648908,-3501.96,0.00020821,2]
[368322857,1751118648917,-460.0,0.00020821,2]
[368322858,1751118648927,-462.35,0.00020821,2]
[368322859,1751118648936,-460.0,0.00020821,2]
[368322860,1751118648945,-1165.59,0.00020821,2]
[368322861,1751118648955,-1043.61,0.00020821,2]
[368322862,1751118648964,-1385.71,0.00020821,2]
[368322863,1751118648973,-151.0,0.00020821,2]
[368322864,1751118648983,-462.26,0.00020821,2]
[368322865,1751118648992,-460.0,0.00020821,2]
[368322866,1751118649001,-460.0,0.00020821,2]
[368322867,1751118649011,-460.0,0.00020821,2]
[368322868,1751118649020,-460.0,0.00020821,2]
[368322869,1751118649029,-604.53103826,0.00020821,2]
[368322870,1751118649038,-1396.09,0.00020821,2]
[368322871,1751118649047,-191.23013205,0.00020821,2]
[368322872,1751118649057,-566.96,0.00020821,2]
[368322873,1751118649066,-460.0,0.00020821,2]
[368322874,1751118649075,-543.84,0.00020821,2]
[368322875,1751118649084,-523.59,0.00020821,2]
[368322876,1751118649093,-460.0,0.00020821,2]
[368322877,1751118649102,-257.61468776,0.00020821,2]
[368322878,1751118649111,-598.81,0.00020821,2]
[368322879,1751118649122,-1395.53,0.00020821,2]
[368322880,1751118649132,-460.0,0.00020821,2]
[368322881,1751118649141,-1339.05,0.00020821,2]
[368322882,1751118649150,-460.0,0.00020821,2]
[368322883,1751118649159,-460.0,0.00020821,2]
[368322884,1751118649169,-460.0,0.00020821,2]
[368322885,1751118649178,-151.000001,0.00020821,2]
[368322886,1751118649187,-460.0,0.00020821,2]
[368322887,1751118649197,-460.0,0.00020821,2]
[368322888,1751118649207,-3278.61,0.00020821,2]
[368322889,1751118649216,-684.24,0.00020821,2]
[368322890,1751118649226,-151.0,0.00020821,2]
[368322891,1751118649235,-460.0,0.00020821,2]
[368322892,1751118649245,-779.7,0.00020821,2]
[368322893,1751118649254,-1521.71,0.00020821,2]
[368322894,1751118649264,-4157.90516342,0.00020934,4]
[368322895,1751118649274,-450.813682,0.00020935,2]
[368322896,1751118649284,-450.813682,0.00020935,2]
[368322897,1751118649293,-155.591692,0.00020935,2]
[368322898,1751118649303,-155.591692,0.00020935,2]
[368322899,1751118649312,-1652.965115,0.00020935,2]
[368322900,1751118649322,-1652.965115,0.00020935,2]
[368322901,1751118649331,-151.0,0.00020935,2]
[368322902,1751118649340,-151.0,0.00020935,2]
[368322903,1751118649350,-206.0,0.0002094,2]
[368322904,1751118649360,-1078.0,0.00020974,2]
[368322905,1751118649369,-1078.0,0.00021086,2]
[368322906,1751118649379,-460.0,0.00021094,2]
[368322907,1751118649388,-812.73,0.00021094,2]
[368322908,1751118649397,-460.0,0.00021094,2]
[368322909,1751118649408,-460.0,0.00021094,2]
[368322910,1751118649417,-913.01,0.00021094,2]
[368322911,1751118649427,-779.44,0.00021094,2]
[368322912,1751118649437,-510.34,0.00021094,2]
[368322913,1751118649446,-460.0,0.00021095,2]
[368322914,1751118649455,-522.65,0.00021095,2]
[368322915,1751118649464,-151.749745,0.00021095,2]
[368322916,1751118649474,-151.0,0.00021095,2]
[368322917,1751118649483,-460.0,0.00021095,2]
[368322918,1751118649493,-322.09710814,0.00021095,2]
[368322919,1751118649502,-460.0,0.00021095,2]
[368322920,1751118649512,-608.96,0.00021095,2]
[368322921,1751118649521,-460.0,0.00021095,2]
[368322922,1751118649530,-460.0,0.00021095,2]
[368322923,1751118649540,-578.94,0.00021095,2]
[368322924,1751118649549,-482.91,0.00021095,2]
[368322925,1751118649558,-460.0,0.00021095,2]
[368322926,1751118649567,-151.0,0.00021095,2]
[368322927,1751118649576,-151.0,0.00021095,2]
[368322928,1751118649585,-151.0,0.00021095,2]
[368322929,1751118649595,-500.0,0.00021095,2]
[368322930,1751118649604,-460.0,0.00021095,2]
[368322931,1751118649613,-151.0,0.00021095,2]
[368322932,1751118649623,-151.0,0.00021095,2]
[368322933,1751118649632,-1270.59,0.00021095,2]
[368322934,1751118649641,-1709.5,0.00021095,2]
[368322935,1751118649651,-479.83,0.00021095,2]
[368322936,1751118649660,-623.61,0.00021095,2]
[368322937,1751118649768,-460.0,0.00021095,2]
[368322938,1751118649778,-1964.43,0.00021095,2]
[368322939,1751118649788,-460.0,0.00021095,2]
[368322940,1751118649797,-460.0,0.00021095,2]
[368322941,1751118649807,-460.0,0.00021095,2]
[368322942,1751118649816,-460.0,0.00021095,2]
[368322943,1751118649826,-482.31,0.00021095,2]
[368322944,1751118649835,-2005.64,0.00021095,2]
[368322945,1751118649845,-510.98,0.00021095,2]
[368322946,1751118649855,-460.0,0.00021095,2]
[368322947,1751118649864,-460.0,0.00021095,2]
[368322948,1751118649874,-2488.5,0.00021095,2]
[368322949,1751118649884,-1642.79,0.00021095,2]
[368322950,1751118649894,-460.0,0.00021095,2]
[368322951,1751118649903,-768.19,0.00021095,2]
[368322952,1751118649912,-556.28,0.00021095,2]
[368322953,1751118649922,-2086.52,0.00021095,2]
[368322954,1751118649931,-460.0,0.00021095,2]
[368322955,1751118649940,-460.0,0.00021095,2]
[368322956,1751118649949,-3501.96,0.00021095,2]
[368322957,1751118649959,-460.0,0.00021095,2]
[368322958,1751118649968,-462.35,0.00021095,2]
[368322959,1751118649977,-460.0,0.00021095,2]
[368322960,1751118649987,-1165.59,0.00021095,2]
[368322961,1751118649995,-1043.61,0.00021095,2]
[368322962,1751118650005,-1385.71,0.00021095,2]
[368322963,1751118650014,-462.26,0.00021095,2]
[368322964,1751118650023,-460.0,0.00021095,2]
[368322965,1751118650032,-460.0,0.00021095,2]
[368322966,1751118650044,-460.0,0.00021095,2]
[368322967,1751118650054,-460.0,0.00021095,2]
[368322968,1751118650065,-1396.09,0.00021095,2]
[368322969,1751118650074,-566.96,0.00021095,2]
[368322970,1751118650084,-460.0,0.00021095,2]
[368322971,1751118650093,-543.84,0.00021095,2]
[368322972,1751118650103,-523.59,0.00021095,2]
[368322973,1751118650113,-460.0,0.00021095,2]
[368322974,1751118650123,-598.81,0.00021095,2]
[368322975,1751118650133,-1395.53,0.00021095,2]
[368322976,1751118650143,-1339.05,0.00021095,2]
[368322977,1751118650152,-460.0,0.00021095,2]
[368322978,1751118650161,-460.0,0.00021095,2]
[368322979,1751118650170,-460.0,0.00021095,2]
[368322980,1751118650179,-460.0,0.00021095,2]
[368322981,1751118650189,-3278.61,0.00021095,2]
[368322982,1751118650198,-684.24,0.00021095,2]
[368322983,1751118650207,-460.0,0.00021095,2]
[368322984,1751118650217,-779.7,0.00021095,2]
[368322985,1751118650226,-1521.71,0.00021095,2]
[368322986,1751118650235,-4157.90516342,0.00021141,4]
[368322987,1751118650244,-206.0,0.000212,2]
[368322988,1751118650254,-160.0,0.0002121,4]
[368322989,1751118650264,-532.36297218,0.00021331,2]
[368322990,1751118650273,-4157.90516342,0.00021348,5]
[368322991,1751118650283,-151.0,0.0002135,2]
[368322992,1751118650293,-205.439159,0.0002135,2]
[368322993,1751118650302,-205.439159,0.0002135,2]
[368322994,1751118650312,-151.0,0.0002135,2]
[368322995,1751118650321,-151.0,0.0002135,2]
[368322996,1751118650330,-5000.0,0.0002135,2]
[368322997,1751118650339,-526.61215285,0.00021368,2]
[368322998,1751118650349,-812.73,0.00021368,2]
[368322999,1751118650358,-460.0,0.00021368,2]
[368323000,1751118650368,-913.01,0.00021368,2]
[368323001,1751118650377,-779.44,0.00021368,2]
[368323002,1751118650387,-510.34,0.00021368,2]
[368323003,1751118650396,-450.813682,0.00021369,2]
[368323004,1751118650405,-450.813682,0.00021369,2]
[368323005,1751118650415,-155.591692,0.00021369,2]
[368323006,1751118650424,-155.591692,0.00021369,2]
[368323007,1751118650433,-460.0,0.00021369,2]
[368323008,1751118650442,-1652.965115,0.00021369,2]
[368323009,1751118650452,-1652.965115,0.00021369,2]
[368323010,1751118650461,-522.65,0.00021369,2]
[368323011,1751118650471,-460.0,0.00021369,2]
[368323012,1751118650480,-460.0,0.00021369,2]
[368323013,1751118650489,-608.96,0.00021369,2]
[368323014,1751118650498,-460.0,0.00021369,2]
[368323015,1751118650507,-460.0,0.00021369,2]
[368323016,1751118650516,-578.94,0.00021369,2]
[368323017,1751118650524,-460.0,0.00021369,2]
[368323018,1751118650533,-1270.59,0.00021369,2]
[368323019,1751118650543,-1709.5,0.00021369,2]
[368323020,1751118650552,-623.61,0.00021369,2]
[368323021,1751118650561,-460.0,0.00021369,2]
[368323022,1751118650571,-1964.43,0.00021369,2]
[368323023,1751118650580,-460.0,0.00021369,2]
[368323024,1751118650589,-460.0,0.00021369,2]
[368323025,1751118650598,-460.0,0.00021369,2]
[368323026,1751118650607,-460.0,0.00021369,2]
[368323027,1751118650617,-482.31,0.00021369,2]
[368323028,1751118650626,-2005.64,0.00021369,2]
[368323029,1751118650636,-510.98,0.00021369,2]
[368323030,1751118650645,-460.0,0.00021369,2]
[368323031,1751118650654,-2488.5,0.00021369,2]
[368323032,1751118650664,-1642.79,0.00021369,2]
[368323033,1751118650673,-460.0,0.00021369,2]
[368323034,1751118650683,-768.19,0.00021369,2]
[368323035,1751118650692,-556.28,0.00021369,2]
[368323036,1751118650702,-2086.52,0.00021369,2]
[368323037,1751118650711,-460.0,0.00021369,2]
[368323038,1751118650720,-460.0,0.00021369,2]
[368323039,1751118650729,-3501.96,0.00021369,2]
[368323040,1751118650742,-460.0,0.00021369,2]
[368323041,1751118650751,-462.35,0.00021369,2]
[368323042,1751118650760,-460.0,0.00021369,2]
[368323043,1751118650769,-1165.59,0.00021369,2]
[368323044,1751118650779,-1043.61,0.00021369,2]
[368323045,1751118650790,-1385.71,0.00021369,2]
[368323046,1751118650800,-462.26,0.00021369,2]
[368323047,1751118650809,-460.0,0.00021369,2]
[368323048,1751118650820,-460.0,0.00021369,2]
[368323049,1751118650829,-460.0,0.00021369,2]
[368323050,1751118650838,-1396.09,0.00021369,2]
[368323051,1751118650847,-566.96,0.00021369,2]
[368323052,1751118650857,-543.84,0.00021369,2]
[368323053,1751118650866,-460.0,0.00021369,2]
[368323054,1751118650875,-523.59,0.00021369,2]
[368323055,1751118650884,-460.0,0.00021369,2]
[368323056,1751118650894,-598.81,0.00021369,2]
[368323057,1751118650903,-1395.53,0.00021369,2]
[368323058,1751118650912,-1339.05,0.00021369,2]
[368323059,1751118650921,-460.0,0.00021369,2]
[368323060,1751118650931,-460.0,0.00021369,2]
[368323061,1751118650940,-460.0,0.00021369,2]
[368323062,1751118650949,-460.0,0.00021369,2]
[368323063,1751118650958,-3278.61,0.00021369,2]
[368323064,1751118650967,-684.24,0.00021369,2]
[368323065,1751118650976,-460.0,0.00021369,2]
[368323066,1751118650986,-779.7,0.00021369,2]
[368323067,1751118650995,-1521.71,0.00021369,2]
[368323068,1751118651005,-206.0,0.0002146,2]
[368323069,1751118651014,-500.24913455,0.00021514,2]
[368323070,1751118651023,-500.0,0.00021514,2]
[368323071,1751118651032,-500.0,0.00021514,2]
[368323072,1751118651041,-500.0,0.00021514,2]
[368323073,1751118651050,-501.73692887,0.00021514,2]
[368323074,1751118651058,-500.0,0.00021514,2]
[368323075,1751118651068,-1004.32019,0.00021554,2]
[368323076,1751118651077,-4157.90516342,0.00021555,5]
[368323077,1751118651086,-339.369419,0.00021558,4]
[368323078,1751118651095,-151.0,0.00021567,2]
[368323079,1751118651105,-151.0,0.00021568,2]
[368323080,1751118651115,-501.11867028,0.00021588,2]
[368323081,1751118651123,-287.61311026,0.00021588,2]
[368323082,1751118651133,-323.33442974,0.00021588,2]
[368323083,1751118651142,-215.0738,0.00021623,2]
[368323084,1751118651151,-501.05088038,0.00021633,2]
[368323085,1751118651160,-500.0,0.00021633,2]
[368323086,1751118651170,-500.95615868,0.00021633,2]
[368323087,1751118651179,-812.73,0.00021642,2]
[368323088,1751118651188,-460.0,0.00021642,2]
[368323089,1751118651198,-913.01,0.00021642,2]
[368323090,1751118651207,-779.44,0.00021642,2]
[368323091,1751118651216,-510.34,0.00021642,2]
[368323092,1751118651225,-460.0,0.00021643,2]
[368323093,1751118651234,-522.65,0.00021643,2]
[368323094,1751118651244,-460.0,0.00021643,2]
[368323095,1751118651253,-563.43113848,0.00021643,2]
[368323096,1751118651262,-608.96,0.00021643,2]
[368323097,1751118651271,-460.0,0.00021643,2]
[368323098,1751118651280,-578.94,0.00021643,2]
[368323099,1751118651289,-460.0,0.00021643,2]
[368323100,1751118651298,-1270.59,0.00021643,2]
[368323101,1751118651307,-1709.5,0.00021643,2]
[368323102,1751118651316,-623.61,0.00021643,2]
[368323103,1751118651325,-460.0,0.00021643,2]
[368323104,1751118651334,-151.0,0.00021643,2]
[368323105,1751118651343,-1964.43,0.00021643,2]
[368323106,1751118651351,-151.0,0.00021643,2]
[368323107,1751118651360,-460.0,0.00021643,2]
[368323108,1751118651369,-460.0,0.00021643,2]
[368323109,1751118651379,-460.0,0.00021643,2]
[368323110,1751118651388,-460.0,0.00021643,2]
[368323111,1751118651397,-482.31,0.00021643,2]
[368323112,1751118651406,-2005.64,0.00021643,2]
[368323113,1751118651415,-510.98,0.00021643,2]
[368323114,1751118651424,-460.0,0.00021643,2]
[368323115,1751118651434,-2488.5,0.00021643,2]
[368323116,1751118651442,-1642.79,0.00021643,2]
[368323117,1751118651451,-460.0,0.00021643,2]
[368323118,1751118651461,-768.19,0.00021643,2]
[368323119,1751118651471,-556.28,0.00021643,2]
[368323120,1751118651480,-2086.52,0.00021643,2]
[368323121,1751118651488,-460.0,0.00021643,2]
[368323122,1751118651497,-460.0,0.00021643,2]
[368323123,1751118651506,-3501.96,0.00021643,2]
[368323124,1751118651515,-460.0,0.00021643,2]
[368323125,1751118651524,-462.35,0.00021643,2]
[368323126,1751118651533,-460.0,0.00021643,2]
[368323127,1751118651542,-1165.59,0.00021643,2]
[368323128,1751118651552,-1043.61,0.00021643,2]
[368323129,1751118651561,-1385.71,0.00021643,2]
[368323130,1751118651570,-462.26,0.00021643,2]
[368323131,1751118651579,-460.0,0.00021643,2]
[368323132,1751118651588,-460.0,0.00021643,2]
[368323133,1751118651596,-460.0,0.00021643,2]
[368323134,1751118651605,-1396.09,0.00021643,2]
[368323135,1751118651614,-566.96,0.00021643,2]
[368323136,1751118651623,-543.84,0.00021643,2]
[368323137,1751118651632,-523.59,0.00021643,2]
[368323138,1751118651642,-460.0,0.00021643,2]
[368323139,1751118651652,-598.81,0.00021643,2]
[368323140,1751118651661,-1395.53,0.00021643,2]
[368323141,1751118651670,-1339.05,0.00021643,2]
[368323142,1751118651679,-460.0,0.00021643,2]
[368323143,1751118651688,-460.0,0.00021643,2]
[368323144,1751118651697,-460.0,0.00021643,2]
[368323145,1751118651706,-460.0,0.00021643,2]
[368323146,1751118651715,-3278.61,0.00021643,2]
[368323147,1751118651724,-684.24,0.00021643,2]
[368323148,1751118651733,-460.0,0.00021643,2]
[368323149,1751118651743,-779.7,0.00021643,2]
[368323150,1751118651752,-1521.71,0.00021643,2]
[368323151,1751118651762,-407.53823865,0.00021682,2]
[368323152,1751118651772,-1078.0,0.000217,2]
[368323153,1751118651781,-206.0,0.0002171,2]
[368323154,1751118651791,-500.0,0.00021712,2]
[368323155,1751118651799,-500.0,0.00021712,2]
[368323156,1751118651809,-4157.90516342,0.00021762,5]
[368323157,1751118651818,-200.0,0.0002177,2]
[368323158,1751118651827,-205.439159,0.00021779,2]
[368323159,1751118651836,-205.439159,0.00021779,2]
[368323160,1751118651845,-151.0,0.00021779,2]
[368323161,1751118651854,-151.0,0.00021779,2]
[368323162,1751118651863,-966.0,0.00021789,2]
[368323163,1751118651872,-654.0,0.00021789,2]
[368323164,1751118651881,-2161.0,0.00021789,2]
[368323165,1751118651890,-406.0,0.00021789,2]
[368323166,1751118651899,-421.306,0.00021789,2]
[368323167,1751118651909,-150.0,0.00021789,2]
[368323168,1751118651918,-450.813682,0.0002183,2]
[368323169,1751118652023,-450.813682,0.0002183,2]
[368323170,1751118652032,-155.591692,0.0002183,2]
[368323171,1751118652042,-155.591692,0.0002183,2]
[368323172,1751118652051,-1652.965115,0.0002183,2]
[368323173,1751118652060,-1652.965115,0.0002183,2]
[368323174,1751118652070,-151.0,0.00021839,2]
[368323175,1751118652079,-587.0,0.00021897,2]
[368323176,1751118652088,-532.36297218,0.00021899,2]
[368323177,1751118652097,-812.73,0.00021916,2]
[368323178,1751118652106,-460.0,0.00021916,2]
[368323179,1751118652115,-913.01,0.00021916,2]
[368323180,1751118652124,-779.44,0.00021916,2]
[368323181,1751118652134,-510.34,0.00021916,2]
[368323182,1751118652142,-295.60569757,0.00021917,2]
[368323183,1751118652151,-205.439159,0.00021917,2]
[368323184,1751118652161,-205.439159,0.00021917,2]
[368323185,1751118652170,-151.0,0.00021917,2]
[368323186,1751118652178,-151.0,0.00021917,2]
[368323187,1751118652188,-152.46579,0.00021917,2]
[368323188,1751118652197,-460.0,0.00021917,2]
[368323189,1751118652206,-522.65,0.00021917,2]
[368323190,1751118652215,-151.0,0.00021917,2]
[368323191,1751118652224,-460.0,0.00021917,2]
[368323192,1751118652233,-608.96,0.00021917,2]
[368323193,1751118652243,-460.0,0.00021917,2]
[368323194,1751118652252,-578.94,0.00021917,2]
[368323195,1751118652261,-460.0,0.00021917,2]
[368323196,1751118652271,-151.0,0.00021917,2]
[368323197,1751118652280,-151.0,0.00021917,2]
[368323198,1751118652290,-151.0,0.00021917,2]
[368323199,1751118652300,-151.0,0.00021917,2]
[368323200,1751118652310,-254.189724,0.00021917,2]
[368323201,1751118652320,-1270.59,0.00021917,2]
[368323202,1751118652329,-1709.5,0.00021917,2]
[368323203,1751118652339,-623.61,0.00021917,2]
[368323204,1751118652348,-460.0,0.00021917,2]
[368323205,1751118652357,-1964.43,0.00021917,2]
[368323206,1751118652366,-460.0,0.00021917,2]
[368323207,1751118652376,-460.0,0.00021917,2]
[368323208,1751118652385,-460.0,0.00021917,2]
[368323209,1751118652394,-460.0,0.00021917,2]
[368323210,1751118652403,-482.31,0.00021917,2]
[368323211,1751118652413,-2005.64,0.00021917,2]
[368323212,1751118652422,-510.98,0.00021917,2]
[368323213,1751118652431,-460.0,0.00021917,2]
[368323214,1751118652440,-2488.5,0.00021917,2]
[368323215,1751118652449,-1642.79,0.00021917,2]
[368323216,1751118652459,-460.0,0.00021917,2]
[368323217,1751118652469,-768.19,0.00021917,2]
[368323218,1751118652479,-556.28,0.00021917,2]
[368323219,1751118652488,-2086.52,0.00021917,2]
[368323220,1751118652499,-460.0,0.00021917,2]
[368323221,1751118652509,-460.0,0.00021917,2]
[368323222,1751118652519,-3501.96,0.00021917,2]
[368323223,1751118652528,-460.0,0.00021917,2]
[368323224,1751118652539,-462.35,0.00021917,2]
[368323225,1751118652548,-460.0,0.00021917,2]
[368323226,1751118652559,-1165.59,0.00021917,2]
[368323227,1751118652569,-1043.61,0.00021917,2]
[368323228,1751118652580,-1385.71,0.00021917,2]
[368323229,1751118652591,-462.26,0.00021917,2]
[368323230,1751118652600,-460.0,0.00021917,2]
[368323231,1751118652610,-460.0,0.00021917,2]
[368323232,1751118652620,-460.0,0.00021917,2]
[368323233,1751118652630,-1396.09,0.00021917,2]
[368323234,1751118652640,-566.96,0.00021917,2]
[368323235,1751118652650,-543.84,0.00021917,2]
[368323236,1751118652660,-523.59,0.00021917,2]
[368323237,1751118652670,-460.0,0.00021917,2]
[368323238,1751118652679,-598.81,0.00021917,2]
[368323239,1751118652689,-1395.53,0.00021917,2]
[368323240,1751118652699,-1339.05,0.00021917,2]
[368323241,1751118652708,-460.0,0.00021917,2]
[368323242,1751118652717,-460.0,0.00021917,2]
[368323243,1751118652727,-536.17000001,0.00021917,2]
[368323244,1751118652736,-3278.61,0.00021917,2]
[368323245,1751118652749,-684.24,0.00021917,2]
[368323246,1751118652758,-460.0,0.00021917,2]
[368323247,1751118652767,-1521.71,0.00021917,2]
[368323248,1751118652778,-779.7,0.00021917,2]
[368323249,1751118652787,-450.813682,0.00021918,7]
[368323250,1751118652796,-450.813682,0.00021918,7]
[368323251,1751118652806,-155.591692,0.00021918,7]
[368323252,1751118652817,-155.591692,0.00021918,7]
[368323253,1751118652826,-635.73594332,0.00021918,7]
[368323254,1751118652944,-1017.22917168,0.00021918,7]
[368323255,1751118652953,-1652.965115,0.00021918,7]